bitfinex/quotes_SOLUSD_20240711
["timestamp","ask_amount","ask_price","bid_price","bid_amount"]
[1720706845904,7.0216,142.42,142.37,7.0238]
[1720706846352,7.022,142.41,142.36,41.0292]
[1720706846927,7.0216,142.42,142.37,7.0237]
[1720706847340,7.0221,142.41,142.36,41.0292]
[1720706847514,7.0225,142.4,142.37,0.86025774]
[1720706848508,7.023,142.39,142.37,0.86025774]
[1720706848952,7.0242,142.37,142.35,6.1002]
[1720706849129,7.0237,142.38,142.35,6.1002]
[1720706849460,7.0231,142.39,142.35,6.1002]
[1720706850443,7.0226,142.4,142.35,6.1002]
[1720706850815,7.0226,142.4,142.35,13.1251]
[1720706851013,7.0221,142.41,142.36,0.34]
[1720706851220,7.0221,142.41,142.36,7.3644]
[1720706851421,23.27,142.45,142.37,7.0236]
[1720706851644,23.27,142.45,142.38,0.34]
[1720706852013,7.0213,142.43,142.38,0.34]
[1720706852749,7.0206,142.44,142.39,16.6494]
[1720706853050,7.0205,142.44,142.4,0.34]
[1720706854734,7.3367091,142.5,142.41,127.3388]
[1720706854924,7.0176,142.5,142.45,7.0199]
[1720706855144,6.5549,142.57,142.46,16.4802]
[1720706855325,7.0168,142.52,142.46,41.0474]
[1720706855522,23.27,142.55,142.48,7.0182]
[1720706855831,7.0155,142.55,142.49,13.3937]
[1720706856042,23.27,142.56,142.5,62.7133]
[1720706856224,7.0152,142.55,142.51,0.17]
[1720706856436,17.5348,142.58,142.5,0.17]
[1720706856632,7.0156,142.54,142.5,0.34]
[1720706857779,23.27,142.56,142.49,6.3759]
[1720706858316,7.0162,142.53,142.49,6.3759]
[1720706858737,7.0166,142.52,142.49,6.3759]
[1720706860443,7.0151,142.55,142.5,7.1875]
[1720706860666,48.13586042,142.59,142.51,0.17]
[1720706860667,7.0142,142.57,142.51,0.17]
[1720706860950,52.5901,142.62,142.52,15.9664]
[1720706860951,7.0137,142.58,142.52,15.9664]
[1720706861150,7.0137,142.58,142.53,0.34]
[1720706861720,7.0142,142.57,142.53,0.34]
[1720706861970,7.0146,142.56,142.52,15.9664]
[1720706862519,7.0141,142.57,142.53,0.34]
[1720706862893,7.0146,142.56,142.53,0.34]
[1720706863142,7.0142,142.57,142.52,15.9664]
[1720706863836,7.0146,142.56,142.52,15.9664]
[1720706864640,7.0141,142.57,142.52,22.9828]
[1720706865240,2.8249912,142.62,142.53,24.5555]
[1720706865447,7.0139,142.58,142.53,24.5555]
[1720706865746,40.7987,142.63,142.54,7.3553]
[1720706865949,7.0134,142.59,142.54,7.3553]
[1720706866461,7.0134,142.59,142.54,0.34]
[1720706867762,7.0138,142.58,142.54,0.34]
[1720706867922,7.0141,142.57,142.54,0.34]
[1720706868438,7.0141,142.57,142.53,0.34]
[1720706868637,7.0147,142.56,142.53,0.34]
[1720706868825,7.0147,142.56,142.53,0.17]
[1720706869254,7.0142,142.57,142.53,0.17]
[1720706869438,7.0142,142.57,142.53,0.34]
[1720706870437,23.27,142.6,142.53,0.17]
[1720706870754,7.0148,142.56,142.52,15.9664]
[1720706871647,17.533,142.59,142.52,15.9664]
[1720706871831,17.533,142.59,142.49,416.6635]
[1720706871832,7.0159,142.54,142.49,416.6635]
[1720706872360,7.016,142.53,142.49,409.6456]
[1720706872567,40.8058,142.57,142.49,409.6456]
[1720706872854,7.017,142.51,142.49,409.6456]
[1720706873064,7.0175,142.5,142.49,6.3759]
[1720706873241,7.0171,142.51,142.49,6.3759]
[1720706873551,7.0183,142.49,142.47,0.3534327]
[1720706873729,7.0183,142.49,142.46,16.3508]
[1720706874047,7.0193,142.47,142.42,28.4232]
[1720706874233,7.0193,142.47,142.43,30.0]
[1720706874432,7.0187,142.48,142.43,30.0]
[1720706874652,7.0187,142.48,142.42,28.4232]
[1720706874832,7.0187,142.48,142.43,7.0208]
[1720706875156,7.0176,142.5,142.44,7.0203]
[1720706875635,7.0172,142.51,142.45,7.1899]
[1720706875860,7.0172,142.51,142.46,0.17]
[1720706876646,7.0177,142.5,142.46,0.17]
[1720706877360,7.0172,142.51,142.46,52.1894]
[1720706877533,17.5349,142.58,142.48,6.2921]
[1720706877743,7.0155,142.55,142.49,61.2814]
[1720706877937,17.5349,142.58,142.5,7.0171]
[1720706878151,17.5349,142.58,142.51,0.34]
[1720706878359,7.0159,142.54,142.49,90.9414]
[1720706878551,17.5349,142.58,142.49,45.9414]
[1720706878855,7.0163,142.53,142.5,1.40304097]
[1720706879160,17.5349,142.58,142.51,0.17]
[1720706879161,7.0153,142.55,142.51,0.17]
[1720706879343,7.0139,142.58,142.54,6.603]
[1720706879530,23.27,142.63,142.55,1.57246851]
[1720706879735,7.0129,142.6,142.55,1.74246851]
[1720706880460,7.0131,142.59,142.55,1.57246851]
[1720706880758,7.0152,142.55,142.51,387.3]
[1720706880952,7.0146,142.56,142.51,387.3]
[1720706881163,7.0146,142.56,142.52,0.17]
[1720706881383,17.5321,142.6,142.52,45.17]
[1720706881560,7.0141,142.57,142.52,52.1862]
[1720706881736,7.0131,142.59,142.54,7.0155]
[1720706881943,17.5249,142.66,142.56,7.0145]
[1720706882254,7.0118,142.62,142.57,28.6096]
[1720706882486,17.5272,142.64,142.57,21.2559]
[1720706882656,7.0129,142.6,142.57,21.2559]
[1720706882840,7.0122,142.61,142.57,21.2559]
[1720706883338,7.0118,142.62,142.58,0.34]
[1720706884070,7.0113,142.63,142.58,52.3532]
[1720706884252,7.0107,142.64,142.58,52.3532]
[1720706885259,7.0103,142.65,142.6,7.0122]
[1720706885471,7.0103,142.65,142.61,1.39828559]
[1720706885852,7.0112,142.63,142.59,17.5325]
[1720706886048,7.0107,142.64,142.6,0.34]
[1720706886666,7.0097,142.66,142.6,45.34]
[1720706886864,7.0097,142.66,142.6,52.3522]
[1720706887164,7.0101,142.65,142.6,52.3522]
[1720706887544,7.0106,142.64,142.6,0.34]
[1720706887755,7.0103,142.65,142.6,0.34]
[1720706887965,7.0107,142.64,142.6,30.34]
[1720706888157,17.5208,142.69,142.6,30.34]
[1720706888350,7.01,142.66,142.6,37.3525]
[1720706888557,7.0101,142.65,142.6,37.3525]
[1720706889371,18.95286921,142.71,142.6,30.34]
[1720706889372,7.0111,142.63,142.6,30.34]
[1720706889659,7.0111,142.63,142.6,0.17]
[1720706889860,7.0118,142.62,142.59,387.3]
[1720706890068,17.5235,142.67,142.6,1.4021545]
[1720706890272,7.0126,142.6,142.59,387.3]
[1720706890567,7.0112,142.63,142.57,21.2559]
[1720706890791,7.0112,142.63,142.58,7.0135]
[1720706891354,7.0108,142.64,142.58,7.0135]
[1720706891572,7.0108,142.64,142.59,0.17]
[1720706891866,17.5225,142.68,142.59,0.17]
[1720706892066,7.0117,142.62,142.58,45.34]
[1720706892653,17.5244,142.66,142.58,0.34]
[1720706892878,7.0129,142.6,142.57,21.2559]
[1720706893643,7.0122,142.61,142.57,21.2559]
[1720706893849,17.5273,142.64,142.56,387.3]
[1720706893850,7.014,142.57,142.56,387.3]
[1720706894114,16.5135,142.64,142.49,16.6043]
[1720706894295,17.5346,142.58,142.5,30.0]
[1720706894759,17.5373,142.56,142.49,22.7124]
[1720706894960,7.0174,142.51,142.49,22.7124]
[1720706895266,17.5391,142.54,142.45,39.8718]
[1720706895467,7.0167,142.52,142.47,7.0189]
[1720706895776,17.5379,142.55,142.45,39.8718]
[1720706896005,7.0175,142.5,142.45,46.8917]
[1720706896353,7.0172,142.51,142.45,46.8917]
[1720706896564,6.266,142.59,142.45,22.3224]
[1720706896769,26.1,142.56,142.42,6.3878]
[1720706897071,7.0191,142.47,142.42,13.4092]
[1720706897458,17.5431,142.51,142.42,6.3878]
[1720706897662,45.0,142.5,142.43,1.05721894]
[1720706897850,7.0213,142.43,142.39,6.3733]
[1720706898452,17.546,142.49,142.4,0.76605897]
[1720706898791,17.546,142.49,142.39,6.3733]
[1720706898792,17.546,142.49,142.39,23.93]
[1720706898948,80.2582,142.5,142.39,23.93]
[1720706898949,7.0192,142.47,142.41,7.0218]
[1720706899155,7.0186,142.48,142.42,7.3614]
[1720706899354,7.0189,142.48,142.42,7.361]
[1720706899581,17.542,142.52,142.42,7.361]
[1720706899770,7.019,142.47,142.42,0.34]
[1720706900273,7.0199,142.46,142.42,0.34]
[1720706900566,7.02,142.45,142.39,113.3961]
[1720706900770,17.5468,142.48,142.4,30.0]
[1720706901075,7.0206,142.44,142.4,30.0]
[1720706901773,7.0206,142.44,142.39,6.3733]
[1720706902374,7.0199,142.46,142.4,7.0223]
[1720706902676,7.02,142.45,142.4,7.0223]
[1720706902864,7.0205,142.44,142.39,13.3961]
[1720706903060,17.5468,142.48,142.39,6.3733]
[1720706903769,7.0206,142.44,142.39,13.3962]
[1720706904072,17.5468,142.48,142.39,13.3962]
[1720706904252,7.0208,142.44,142.39,13.3962]
[1720706904866,7.0201,142.45,142.4,7.0222]
[1720706905179,7.0201,142.45,142.41,0.17]
[1720706905666,7.0195,142.46,142.41,7.1919]
[1720706905849,17.5468,142.48,142.42,1.40165824]
[1720706906049,7.0201,142.45,142.43,1.40199758]
[1720706906253,17.5468,142.48,142.4,0.17]
[1720706906254,7.0204,142.44,142.4,0.17]
[1720706906556,17.5468,142.48,142.39,6.3733]
[1720706906557,7.021,142.43,142.39,6.3733]
[1720706907071,7.0206,142.44,142.39,13.3961]
[1720706907262,7.0201,142.45,142.39,13.3961]
[1720706907458,7.0194,142.47,142.4,17.7256]
[1720706907656,17.5468,142.48,142.41,7.0217]
[1720706907860,7.0197,142.46,142.41,7.0217]
[1720706908073,35.0875,142.51,142.39,6.3733]
[1720706908258,45.0,142.5,142.39,6.3733]
[1720706908590,7.0209,142.44,142.39,6.3733]
[1720706908781,7.02,142.45,142.39,23.9304]
[1720706909080,45.8837303,142.51,142.41,7.0218]
[1720706909081,7.0198,142.46,142.41,7.0218]
[1720706909619,7.0198,142.46,142.42,0.17]
[1720706909775,55.46082471,142.51,142.42,7.3614]
[1720706909776,7.0191,142.47,142.42,7.3614]
[1720706910085,7.02,142.45,142.42,0.17]
[1720706910279,37.91742471,142.51,142.39,6.3733]
[1720706910462,7.0206,142.44,142.4,30.0]
[1720706910985,7.0206,142.44,142.39,13.3962]
[1720706911155,17.5481,142.47,142.39,6.3733]
[1720706911578,7.0215,142.42,142.39,6.3733]
[1720706912277,7.0211,142.43,142.39,6.3733]
[1720706912487,24.88072282,142.5,142.39,23.9302]
[1720706912673,17.5464,142.48,142.39,123.9302]
[1720706912872,7.0196,142.46,142.41,7.0216]
[1720706913078,7.0191,142.47,142.42,7.3614]
[1720706913271,7.0196,142.46,142.42,0.34]
[1720706913470,7.0196,142.46,142.39,6.3733]
[1720706913471,17.5453,142.49,142.39,6.3733]
[1720706913805,17.5453,142.49,142.41,7.0215]
[1720706913806,7.0195,142.46,142.41,7.0215]
[1720706913969,17.5453,142.49,142.4,47.8956]
[1720706914163,7.0205,142.44,142.4,47.8956]
[1720706914762,7.02,142.45,142.4,54.918]
[1720706914958,17.5453,142.49,142.41,52.0219]
[1720706915164,17.5453,142.49,142.42,0.34]
[1720706915381,17.5453,142.49,142.42,0.17]
[1720706915687,7.0199,142.46,142.42,0.78114294]
[1720706915872,17.5453,142.49,142.42,0.78114294]
[1720706916061,7.02,142.45,142.42,0.61114294]
[1720706916460,7.0191,142.47,142.43,0.17]
[1720706916764,7.0195,142.46,142.43,0.34]
[1720706916968,7.0201,142.45,142.42,0.61114294]
[1720706917167,7.0201,142.45,142.41,0.17]
[1720706917403,7.0195,142.46,142.42,0.17]
[1720706917685,7.0195,142.46,142.42,0.34]
[1720706917898,7.0195,142.46,142.42,0.17]
[1720706918063,7.0192,142.47,142.42,7.3614]
[1720706918491,7.0187,142.48,142.43,7.0209]
[1720706918691,24.88062282,142.5,142.42,0.34]
[1720706918692,7.019,142.47,142.42,7.3613]
[1720706919015,30.56652282,142.5,142.44,16.2922]
[1720706919165,7.0186,142.48,142.45,1.40353125]
[1720706919365,7.0186,142.48,142.46,1.40358209]
[1720706919567,2.82833262,142.52,142.46,1.40358209]
[1720706919777,7.0173,142.51,142.46,14.45558209]
[1720706920006,7.0173,142.51,142.47,0.17]
[1720706920172,7.0173,142.51,142.47,1.57335947]
[1720706920173,7.0172,142.51,142.47,1.57335947]
[1720706920583,7.0176,142.5,142.47,1.57335947]
[1720706920781,7.0183,142.49,142.47,1.57335947]
[1720706921574,7.0185,142.48,142.47,1.40335947]
[1720706921780,7.0185,142.48,142.46,6.0328]
[1720706921993,7.0185,142.48,142.46,7.43616569]
[1720706922291,7.0164,142.53,142.48,7.0184]
[1720706922592,7.0166,142.52,142.49,1.40307021]
[1720706922770,17.5382,142.55,142.49,1.40307021]
[1720706923476,7.0165,142.52,142.49,1.40307021]
[1720706924791,7.0171,142.51,142.49,1.40307021]
[1720706925217,17.5382,142.55,142.49,1.40307021]
[1720706925381,17.5382,142.55,142.46,6.0328]
[1720706925382,7.0175,142.5,142.47,1.40307021]
[1720706926094,17.5382,142.55,142.47,1.40307021]
[1720706926395,23.23,142.56,142.47,1.40307021]
[1720706926620,23.23,142.53,142.46,6.2028]
[1720706927280,40.7705,142.53,142.46,6.0328]
[1720706927477,7.0185,142.48,142.46,6.0328]
[1720706928413,7.0179,142.5,142.46,6.0328]
[1720706928601,7.0173,142.51,142.47,0.17]
[1720706928978,7.0167,142.52,142.47,8.76155713]
[1720706929190,7.0167,142.52,142.47,53.76155713]
[1720706929487,7.017,142.51,142.47,53.76155713]
[1720706929785,7.0171,142.51,142.47,46.74265713]
[1720706930688,7.0167,142.52,142.47,53.76155713]
[1720706930885,7.0162,142.53,142.48,7.0183]
[1720706931197,40.7675,142.56,142.49,46.74246025]
[1720706931416,7.0161,142.53,142.49,46.57246025]
[1720706931719,7.0165,142.52,142.5,0.17]
[1720706931995,7.017,142.51,142.5,1.40316593]
[1720706932293,7.0178,142.5,142.46,6.0328]
[1720706932549,7.0178,142.5,142.47,30.17]
[1720706932807,23.23,142.56,142.47,30.0]
[1720706933004,7.0185,142.48,142.47,30.0]
[1720706933180,7.0185,142.48,142.46,6.0328]
[1720706933378,7.0182,142.49,142.46,6.0328]
[1720706933605,17.5419,142.52,142.46,6.0328]
[1720706933606,7.0177,142.5,142.46,6.0328]
[1720706934391,7.0177,142.5,142.47,0.17]
[1720706935221,23.23,142.53,142.46,6.0328]
[1720706935222,7.018,142.49,142.46,6.0328]
[1720706935395,7.0188,142.48,142.46,6.0328]
[1720706935600,7.0182,142.49,142.46,6.0328]
[1720706936027,7.0176,142.5,142.46,6.0328]
[1720706936920,7.0176,142.5,142.47,0.17]
[1720706937098,7.0176,142.5,142.47,0.34]
[1720706937299,7.0181,142.49,142.47,0.34]
[1720706937501,7.0181,142.49,142.46,6.0328]
[1720706938108,7.0176,142.5,142.46,13.0522]
[1720706938312,7.0176,142.5,142.47,0.34]
[1720706938850,7.0172,142.51,142.47,0.34]
[1720706939135,7.33243996,142.57,142.47,45.34]
[1720706939302,23.23,142.58,142.48,100.0]
[1720706939510,23.23,142.58,142.49,45.34]
[1720706939915,17.536,142.57,142.49,45.34]
[1720706940109,7.0169,142.52,142.49,0.34]
[1720706940426,7.0161,142.53,142.49,0.34]
[1720706940631,7.0166,142.52,142.49,0.34]
[1720706940844,7.0166,142.52,142.49,0.17]
[1720706941001,7.0166,142.52,142.48,30.34]
[1720706941596,7.0171,142.51,142.48,30.34]
[1720706941962,7.018,142.49,142.48,30.17]
[1720706942109,7.0176,142.5,142.46,6.0328]
[1720706942305,7.0176,142.5,142.47,0.34]
[1720706942700,7.0167,142.52,142.47,7.3586]
[1720706942903,7.0163,142.53,142.48,7.0185]
[1720706943106,7.0163,142.53,142.49,0.34]
[1720706945422,7.0166,142.52,142.49,0.34]
[1720706945621,7.0166,142.52,142.48,45.34]
[1720706946432,7.0173,142.51,142.48,45.34]
[1720706946634,7.0173,142.51,142.48,0.34]
[1720706946936,7.0178,142.5,142.48,0.34]
[1720706947127,7.0178,142.5,142.46,410.8815]
[1720706947328,17.5417,142.52,142.46,6.0328]
[1720706947511,7.019,142.47,142.44,16.2922]
[1720706947708,7.0195,142.46,142.44,16.2922]
[1720706947917,23.23,142.5,142.44,16.2922]
[1720706948372,40.7708,142.53,142.46,7.0193]
[1720706948640,7.0162,142.53,142.48,7.0184]
[1720706949136,7.0165,142.52,142.49,0.17]
[1720706949316,40.7671,142.56,142.49,1.25556337]
[1720706949317,7.0171,142.51,142.49,1.25556337]
[1720706950027,7.0175,142.5,142.47,0.17]
[1720706950344,7.0175,142.5,142.45,7.0199]
[1720706950345,23.23,142.53,142.46,52.3594]
[1720706950644,7.0173,142.51,142.46,52.3594]
[1720706951939,23.23,142.53,142.46,52.3594]
[1720706951940,7.0181,142.49,142.46,45.34]
[1720706952450,7.0187,142.48,142.44,16.2922]
[1720706953141,7.0181,142.49,142.44,23.3126]
[1720706953350,7.0186,142.48,142.44,33.8433]
[1720706953639,7.0186,142.48,142.44,16.2922]
[1720706954138,7.0191,142.47,142.44,16.2922]
[1720706954340,17.5466,142.48,142.4,16.413]
[1720706954555,7.0216,142.42,142.4,16.413]
[1720706954722,7.0211,142.43,142.4,16.413]
[1720706955119,7.0215,142.42,142.4,16.413]
[1720706955337,7.0224,142.41,142.36,403.105]
[1720706955567,7.0216,142.42,142.38,30.0]
[1720706955850,7.0221,142.41,142.38,30.0]
[1720706956042,23.23,142.47,142.38,30.0]
[1720706956043,7.0229,142.39,142.38,30.0]
[1720706956420,7.0229,142.39,142.32,28.0617]
[1720706956421,7.0229,142.39,142.33,7.0259]
[1720706956640,7.0225,142.4,142.34,37.025]
[1720706956856,7.0225,142.4,142.34,30.0]
[1720706957139,7.0228,142.4,142.34,37.0252]
[1720706957517,17.5533,142.43,142.34,30.0]
[1720706957998,7.0236,142.38,142.34,30.0]
[1720706958648,7.0236,142.38,142.33,17.7343]
[1720706958841,7.0236,142.38,142.34,0.17]
[1720706961717,17.5533,142.43,142.34,0.17]
[1720706961718,7.0231,142.39,142.34,0.17]
[1720706961922,7.0225,142.4,142.34,0.17]
[1720706962143,7.0229,142.39,142.34,0.34]
[1720706962350,7.0229,142.39,142.34,7.3651]
[1720706962647,7.0225,142.4,142.35,7.0248]
[1720706962850,7.024,142.37,142.34,0.34]
[1720706963034,7.0241,142.37,142.32,28.062]
[1720706963233,7.0245,142.36,142.32,21.0357]
[1720706963452,7.0249,142.36,142.32,21.0357]
[1720706963956,7.0241,142.37,142.32,28.062]
[1720706964629,7.0245,142.36,142.33,0.34]
[1720706964835,7.0245,142.36,142.32,21.0357]
[1720706965237,7.0245,142.36,142.32,28.0621]
[1720706965447,7.024,142.37,142.32,28.0621]
[1720706965657,17.5564,142.4,142.32,21.0357]
[1720706965846,17.5564,142.4,142.33,45.34]
[1720706966258,7.0235,142.38,142.33,52.3659]
[1720706968584,7.0245,142.36,142.33,0.17]
[1720706968734,7.0245,142.36,142.32,21.0357]
[1720706968945,7.0241,142.37,142.32,28.062]
[1720706969371,7.0244,142.36,142.32,21.0357]
[1720706970461,16.49,142.36,142.3,387.3]
[1720706970640,16.49,142.36,142.27,18.4323257]
[1720706970844,7.0261,142.33,142.28,30.0]
[1720706971160,7.0261,142.33,142.27,25.4607257]
[1720706971459,7.0261,142.33,142.28,7.0282]
[1720706971659,7.0272,142.31,142.27,0.8610257]
[1720706971840,7.0265,142.32,142.27,7.8898257]
[1720706972586,7.0269,142.31,142.27,7.8898257]
[1720706973066,7.0265,142.32,142.27,7.8898257]
[1720706973438,7.0265,142.32,142.27,7.8894257]
[1720706973850,7.0265,142.32,142.27,0.8610257]
[1720706974042,7.0271,142.31,142.27,0.8610257]
[1720706975244,23.23,142.35,142.27,0.8610257]
[1720706975539,7.0279,142.29,142.27,0.8610257]
[1720706976267,7.0283,142.28,142.27,0.8610257]
[1720706977166,17.5674,142.31,142.27,0.8610257]
[1720706977167,7.028,142.29,142.27,0.8610257]
[1720706977407,7.0283,142.28,142.27,0.8610257]
[1720706977661,7.0275,142.3,142.27,0.8610257]
[1720706978866,7.0275,142.3,142.27,1.41700011]
[1720706979170,7.027,142.31,142.27,1.41700011]
[1720706979339,7.027,142.31,142.27,8.44580011]
[1720706979743,7.027,142.31,142.27,1.41700011]
[1720706980469,7.0268,142.32,142.28,1.13074112]
[1720706980963,7.0279,142.29,142.28,1.13074112]
[1720706981161,7.0279,142.29,142.27,0.8610257]
[1720706981366,7.0283,142.28,142.27,0.8610257]
[1720706981941,7.0283,142.29,142.27,0.8610257]
[1720706982250,7.0283,142.28,142.27,0.8610257]
[1720706985144,7.0283,142.28,142.21,21.4055]
[1720706985145,7.0296,142.26,142.21,28.4372]
[1720706985352,7.0299,142.25,142.21,28.4372]
[1720706985748,7.0295,142.26,142.21,28.4372]
[1720706986151,7.029,142.27,142.22,7.0312]
[1720706986352,7.0294,142.26,142.22,7.0312]
[1720706986871,23.23,142.29,142.23,7.0307]
[1720706987366,23.23,142.29,142.22,17.578]
[1720706987677,7.0295,142.26,142.22,17.578]
[1720706987966,7.0298,142.25,142.21,28.437]
[1720706988369,7.0298,142.25,142.21,21.4055]
[1720706989465,7.0298,142.25,142.22,1.40601448]
[1720706990065,7.0308,142.23,142.22,1.40601448]
[1720706990307,40.8042,142.26,142.17,22.3469]
[1720706990951,7.031,142.23,142.18,7.033]
[1720706992768,7.0304,142.24,142.19,7.0327]
[1720706993273,7.03,142.25,142.2,7.0322]
[1720706993480,23.23,142.29,142.21,17.7492]
[1720706993653,23.23,142.29,142.22,0.89327458]
[1720706993855,7.0288,142.27,142.23,0.17]
[1720706994054,7.0294,142.26,142.23,0.89321518]
[1720706994392,7.0289,142.27,142.24,0.89315267]
[1720706994999,23.23,142.29,142.23,0.69354694]
[1720706995292,7.03,142.25,142.23,0.69354694]
[1720706995492,7.03,142.25,142.21,0.72588545]
[1720706995686,7.0293,142.26,142.22,7.0311]
[1720706995883,7.0293,142.26,142.23,0.72578337]
[1720706996700,7.0301,142.25,142.23,0.72578337]
[1720706996982,7.0301,142.25,142.21,0.72748367]
[1720706999283,7.0299,142.25,142.21,0.72748367]
[1720706999694,7.0295,142.26,142.21,7.0317]
[1720707000496,7.0285,142.28,142.23,7.0307]
[1720707000580,23.23,142.29,142.18,100.0]
[1720707000910,7.0301,142.25,142.2,7.0319]
[1720707001079,7.0303,142.24,142.19,62.921]
[1720707001522,7.0303,142.24,142.19,69.9535]
[1720707001881,7.0303,142.24,142.18,100.0]
[1720707001882,40.8037,142.26,142.17,22.3469]
[1720707002095,7.0309,142.23,142.18,7.0333]
[1720707002718,38.5853,142.3,142.19,1.06506817]
[1720707002889,38.5853,142.3,142.22,17.5781]
[1720707003077,23.23,142.3,142.23,24.28826863]
[1720707003275,30.2575,142.3,142.25,7.0297]
[1720707003535,7.0279,142.29,142.26,1.06454408]
[1720707003706,7.0279,142.29,142.27,1.06446925]
[1720707003906,7.0283,142.28,142.25,1.06446924]
[1720707004395,7.029,142.27,142.25,1.06446924]
[1720707004699,20.33336516,142.32,142.25,8.09396924]
[1720707004887,31.19630559,142.33,142.26,7.0293]
[1720707005194,7.0272,142.31,142.26,7.1993]
[1720707005560,16.5653,142.34,142.29,7.0276]
[1720707005561,7.0255,142.34,142.29,7.0276]
[1720707005689,25.97628063,142.37,142.29,39.4975]
[1720707005888,25.97628063,142.37,142.3,52.3669]
[1720707005889,7.0249,142.35,142.3,52.3669]
[1720707006201,23.23,142.37,142.29,39.4975]
[1720707006408,23.23,142.37,142.3,0.6774806]
[1720707006603,7.0262,142.33,142.3,0.6774806]
[1720707006974,7.0255,142.34,142.3,0.6774806]
[1720707007182,7.026,142.33,142.29,21.9282]
[1720707007804,7.0264,142.32,142.29,21.9282]
[1720707008603,17.5614,142.36,142.27,387.3]
[1720707008604,7.027,142.31,142.27,387.3]
[1720707008859,7.0275,142.3,142.26,22.4598]
[1720707009282,7.027,142.31,142.26,29.489]
[1720707009595,23.23,142.34,142.28,7.0279]
[1720707009802,23.23,142.34,142.27,17.5719]
[1720707010012,7.0264,142.32,142.27,24.6004]
[1720707010584,23.23,142.34,142.27,17.5719]
[1720707010783,7.0265,142.32,142.27,24.6007]
[1720707011283,7.0275,142.3,142.26,22.7998]
[1720707011489,7.0281,142.29,142.24,24.6052]
[1720707011818,7.0285,142.28,142.24,17.5749]
[1720707012122,7.029,142.27,142.22,29.647]
[1720707013004,7.0284,142.28,142.23,7.0306]
[1720707013187,7.0284,142.28,142.24,7.0303]
[1720707013381,7.028,142.29,142.24,7.0303]
[1720707013579,7.0278,142.3,142.25,7.0297]
[1720707013805,7.0279,142.29,142.24,7.0303]
[1720707014383,7.0284,142.28,142.23,24.9475]
[1720707014590,7.0284,142.28,142.24,0.34]
[1720707014894,7.0284,142.28,142.23,24.6075]
[1720707015121,7.028,142.29,142.23,17.5769]
[1720707015300,7.028,142.29,142.25,7.0298]
[1720707015895,7.028,142.29,142.24,7.0303]
[1720707015896,7.0279,142.29,142.24,7.0303]
[1720707016097,7.0289,142.27,142.23,17.5769]
[1720707016295,7.0299,142.25,142.21,7.0316]
[1720707016515,7.0299,142.25,142.2,24.6121]
[1720707017020,7.0299,142.25,142.21,7.0318]
[1720707017192,7.0295,142.26,142.21,7.0318]
[1720707017589,7.0299,142.25,142.21,7.0318]
[1720707018098,7.0295,142.26,142.21,7.0318]
[1720707018293,7.029,142.27,142.22,7.0311]
[1720707018805,23.23,142.31,142.22,17.5778]
[1720707019008,7.0284,142.28,142.23,7.2005]
[1720707019309,23.23,142.31,142.25,7.0296]
[1720707019495,7.0285,142.28,142.24,17.5752]
[1720707019695,7.0285,142.28,142.23,7.2007]
[1720707020011,7.0284,142.28,142.23,7.2006]